fUST/lending_fUST_20250203
["ID","MTS","AMOUNT","RATE_DAILY","PERIOD"]
[351404974,1738554659211,-646.19324,0.00017568,2]
[351404975,1738554659221,-151.0,0.00017568,2]
[351404976,1738554659231,-151.0,0.00017568,2]
[351404977,1738554659240,-210.59388211,0.00017627,2]
[351404978,1738554659253,-151.0,0.00017671,2]
[351404979,1738554659263,-500.0,0.00017671,2]
[351404980,1738554659272,-500.0,0.00017671,2]
[351404981,1738554659281,-500.0,0.00017671,2]
[351404982,1738554659291,-151.0,0.00017671,2]
[351404983,1738554659300,-500.0,0.00017671,2]
[351404984,1738554659309,-151.0,0.00017671,2]
[351404985,1738554659318,-151.0,0.00017671,2]
[351404986,1738554659328,-151.0,0.00017671,2]
[351404987,1738554659337,-151.0,0.00017671,2]
[351404988,1738554659348,-357.730509,0.00017671,2]
[351404989,1738554659357,-500.0,0.00017671,2]
[351404990,1738554659367,-357.730509,0.00017671,2]
[351404991,1738554659376,-500.0,0.00017671,2]
[351404992,1738554659385,-991.829039,0.00017671,2]
[351404993,1738554659395,-500.0,0.00017671,2]
[351404994,1738554659404,-991.829039,0.00017671,2]
[351404995,1738554659413,-500.0,0.00017671,2]
[351404996,1738554659423,-252.391,0.00017671,2]
[351404997,1738554659432,-500.0,0.00017671,2]
[351404998,1738554659442,-252.391,0.00017671,2]
[351404999,1738554659451,-500.0,0.00017671,2]
[351405000,1738554659461,-500.0,0.00017671,2]
[351405001,1738554659470,-500.0,0.00017671,2]
[351405002,1738554659479,-500.0,0.00017671,2]
[351405003,1738554659488,-173.779155,0.00017671,2]
[351405004,1738554659501,-500.0,0.00017671,2]
[351405005,1738554659510,-500.0,0.00017671,2]
[351405006,1738554659519,-173.779155,0.00017671,2]
[351405007,1738554659529,-500.0,0.00017671,2]
[351405008,1738554659538,-500.0,0.00017671,2]
[351405009,1738554659548,-500.0,0.00017671,2]
[351405010,1738554659557,-151.0,0.00017671,2]
[351405011,1738554659566,-151.0,0.00017671,2]
[351405012,1738554659575,-151.0,0.00017671,2]
[351405013,1738554659588,-151.0,0.00017671,2]
[351405014,1738554659598,-773.23,0.00017671,2]
[351405015,1738554659607,-765.33,0.00017671,2]
[351405016,1738554659616,-275.713506,0.00017671,2]
[351405017,1738554659626,-275.713506,0.00017671,2]
[351405018,1738554659636,-668.66,0.00017671,2]
[351405019,1738554659645,-500.0,0.00017671,2]
[351405020,1738554659654,-500.0,0.00017671,2]
[351405022,1738554659666,-500.0,0.00017671,2]
[351405023,1738554659675,-500.0,0.00017671,2]
[351405024,1738554659685,-671.28806,0.00017671,2]
[351405025,1738554659694,-500.0,0.00017671,2]
[351405026,1738554659703,-671.28806,0.00017671,2]
[351405027,1738554659711,-500.0,0.00017671,2]
[351405028,1738554659721,-506.69076851,0.00017671,2]
[351405029,1738554659730,-3183.83,0.00017671,2]
[351405030,1738554659739,-877.881464,0.00017671,2]
[351405031,1738554659752,-877.881464,0.00017671,2]
[351405032,1738554659761,-596.95967371,0.00017671,2]
[351405033,1738554659771,-596.49,0.00017671,2]
[351405034,1738554659781,-7065.8,0.00017671,2]
[351405035,1738554659790,-684.68,0.00017671,2]
[351405036,1738554659799,-758.586966,0.00017671,2]
[351405037,1738554659809,-500.0,0.00017671,2]
[351405038,1738554659819,-151.0,0.00017671,2]
[351405039,1738554659828,-758.586966,0.00017671,2]
[351405040,1738554659838,-151.0,0.00017671,2]
[351405041,1738554659848,-750.78,0.00017671,2]
[351405042,1738554659857,-500.0,0.00017671,2]
[351405043,1738554659866,-650.17,0.00017671,2]
[351405044,1738554659876,-1019.39,0.00017671,2]
[351405045,1738554659887,-151.0,0.00017671,2]
[351405046,1738554659897,-8146.71,0.00017671,2]
[351405047,1738554659906,-151.0,0.00017671,2]
[351405048,1738554659915,-613.84,0.00017671,2]
[351405049,1738554659924,-550.81,0.00017671,2]
[351405050,1738554659934,-909.51,0.00017671,2]
[351405051,1738554659944,-804.6,0.00017671,2]
[351405052,1738554659954,-500.0,0.00017671,2]
[351405053,1738554659963,-155.029555,0.00017671,2]
[351405054,1738554659972,-2011.93,0.00017671,2]
[351405055,1738554659981,-500.0,0.00017671,2]
[351405056,1738554659991,-3668.25,0.00017671,2]
[351405057,1738554660007,-741.77,0.00017671,2]
[351405058,1738554660016,-1378.39,0.00017671,2]
[351405059,1738554660025,-1589.79,0.00017671,2]
[351405060,1738554660035,-774.95,0.00017671,2]
[351405061,1738554660045,-500.0,0.00017671,2]
[351405062,1738554660055,-635.87,0.00017671,2]
[351405063,1738554660066,-1797.16,0.00017671,2]
[351405064,1738554660193,-724.24,0.00017671,2]
[351405065,1738554660204,-668.66,0.00017671,2]
[351405066,1738554660215,-500.0,0.00017671,2]
[351405067,1738554660225,-1734.91,0.00017671,2]
[351405068,1738554660235,-500.0,0.00017671,2]
[351405069,1738554660246,-1085.82,0.00017671,2]
[351405070,1738554660259,-623.92,0.00017671,2]
[351405071,1738554660269,-712.64,0.00017671,2]
[351405072,1738554660279,-500.0,0.00017671,2]
[351405073,1738554660288,-1384.58,0.00017671,2]
[351405074,1738554660297,-564.8,0.00017671,2]
[351405075,1738554660307,-204.116579,0.000177,2]
[351405076,1738554660316,-204.116579,0.000177,2]
[351405077,1738554660326,-151.0,0.000177,2]
[351405078,1738554660335,-578.939,0.000177,2]
[351405079,1738554660344,-210.59388211,0.00017718,2]
[351405080,1738554660354,-278.0,0.0001774,2]
[351405081,1738554660363,-1200.0,0.0001775,2]
[351405082,1738554660373,-158.11,0.00017759,2]
[351405083,1738554660382,-461.0832715,0.00017781,2]
[351405084,1738554660391,-310.3641415,0.00017781,2]
[351405086,1738554660400,-152.01,0.00017785,2]
[351405087,1738554660410,-154.0,0.00017785,2]
[351405088,1738554660419,-154.0,0.00017785,2]
[351405089,1738554660428,-154.0,0.00017785,2]
[351405090,1738554660437,-154.0,0.00017785,2]
[351405091,1738554660447,-154.0,0.00017785,2]
[351405093,1738554660456,-154.0,0.00017785,2]
[351405094,1738554660466,-154.0,0.00017785,2]
[351405095,1738554660475,-154.0,0.00017785,2]
[351405096,1738554660485,-154.0,0.00017785,2]
[351405097,1738554660498,-154.0,0.00017785,2]
[351405098,1738554660507,-154.0,0.00017785,2]
[351405099,1738554660517,-154.0,0.00017785,2]
[351405101,1738554660527,-154.0,0.00017785,2]
[351405102,1738554660536,-162.0,0.00017785,2]
[351405103,1738554660546,-1903.09,0.000178,2]
[351405104,1738554660555,-6462.54508997,0.000178,2]
[351405105,1738554660564,-500.66895834,0.000178,2]
[351405106,1738554660573,-917.0,0.000178,7]
[351405107,1738554660583,-175.341589,0.000178,2]
[351405109,1738554660593,-175.341589,0.000178,2]
[351405110,1738554660603,-151.0,0.00017808,2]
[351405111,1738554660615,-154.961735,0.00017808,2]
[351405112,1738554660624,-151.0,0.00017808,2]
[351405113,1738554660633,-151.0,0.00017808,2]
[351405114,1738554660643,-225.184195,0.00017808,2]
[351405115,1738554660654,-225.184195,0.00017808,2]
[351405116,1738554660663,-509.534165,0.00017808,2]
[351405117,1738554660672,-509.534162,0.00017808,2]
[351405118,1738554660682,-151.0,0.00017808,2]
[351405119,1738554660691,-1331.612452,0.00017808,2]
[351405120,1738554660700,-1331.612452,0.00017808,2]
[351405121,1738554660710,-151.0,0.00017808,2]
[351405122,1738554660719,-500.0,0.00017808,2]
[351405123,1738554660728,-327.81420933,0.00017808,2]
[351405124,1738554660737,-500.0,0.00017808,2]
[351405125,1738554660749,-500.0,0.00017808,2]
[351405126,1738554660758,-151.0,0.00017808,2]
[351405127,1738554660768,-294.708094,0.00017808,2]
[351405128,1738554660778,-569.324052,0.00017808,2]
[351405129,1738554660787,-569.324052,0.00017808,2]
[351405130,1738554660796,-464.083288,0.00017808,2]
[351405131,1738554660806,-464.083288,0.00017808,2]
[351405132,1738554660815,-151.0,0.00017808,2]
[351405133,1738554660824,-357.730509,0.00017808,2]
[351405134,1738554660833,-529.76812427,0.00017808,2]
[351405135,1738554660842,-357.730509,0.00017808,2]
[351405136,1738554660852,-646.19324,0.00017808,2]
[351405137,1738554660862,-500.0,0.00017808,2]
[351405138,1738554660871,-646.19324,0.00017808,2]
[351405139,1738554660880,-151.0,0.00017808,2]
[351405140,1738554660889,-151.0,0.00017808,2]
[351405141,1738554660899,-991.829039,0.00017808,2]
[351405142,1738554660908,-500.0,0.00017808,2]
[351405143,1738554660917,-991.829039,0.00017808,2]
[351405144,1738554660927,-500.0,0.00017808,2]
[351405145,1738554660936,-252.391,0.00017808,2]
[351405146,1738554660946,-500.0,0.00017808,2]
[351405147,1738554660955,-252.391,0.00017808,2]
[351405148,1738554660965,-500.0,0.00017808,2]
[351405150,1738554660974,-500.0,0.00017808,2]
[351405151,1738554660984,-500.0,0.00017808,2]
[351405152,1738554660993,-500.0,0.00017808,2]
[351405153,1738554661008,-173.779155,0.00017808,2]
[351405154,1738554661017,-469.74848704,0.00017808,2]
[351405155,1738554661026,-337.48711059,0.00017808,2]
[351405157,1738554661035,-173.779155,0.00017808,2]
[351405158,1738554661044,-500.0,0.00017808,2]
[351405159,1738554661054,-500.0,0.00017808,2]
[351405160,1738554661064,-513.79005489,0.00017808,2]
[351405161,1738554661073,-151.0,0.00017808,2]
[351405162,1738554661082,-151.0,0.00017808,2]
[351405163,1738554661092,-151.0,0.00017808,2]
[351405164,1738554661102,-239.98519144,0.00017808,2]
[351405165,1738554661112,-773.23,0.00017808,2]
[351405166,1738554661121,-765.33,0.00017808,2]
[351405167,1738554661131,-668.66,0.00017808,2]
[351405168,1738554661141,-195.70501612,0.00017808,2]
[351405169,1738554661151,-500.0,0.00017808,2]
[351405170,1738554661161,-500.0,0.00017808,2]
[351405171,1738554661170,-500.0,0.00017808,2]
[351405172,1738554661180,-500.0,0.00017808,2]
[351405173,1738554661190,-3183.83,0.00017808,2]
[351405174,1738554661200,-596.49,0.00017808,2]
[351405175,1738554661209,-7065.8,0.00017808,2]
[351405176,1738554661219,-684.68,0.00017808,2]
[351405177,1738554661229,-500.0,0.00017808,2]
[351405178,1738554661239,-750.78,0.00017808,2]
[351405179,1738554661253,-500.0,0.00017808,2]
[351405180,1738554661263,-650.17,0.00017808,2]
[351405181,1738554661272,-151.0,0.00017808,2]
[351405182,1738554661282,-1019.39,0.00017808,2]
[351405183,1738554661292,-8146.71,0.00017808,2]
[351405184,1738554661302,-613.84,0.00017808,2]
[351405185,1738554661311,-550.81,0.00017808,2]
[351405186,1738554661321,-909.51,0.00017808,2]
[351405187,1738554661331,-804.6,0.00017808,2]
[351405188,1738554661340,-500.0,0.00017808,2]
[351405189,1738554661350,-253.230174,0.00017808,2]
[351405190,1738554661359,-2011.93,0.00017808,2]
[351405191,1738554661369,-500.0,0.00017808,2]
[351405192,1738554661380,-3668.25,0.00017808,2]
[351405193,1738554661389,-741.77,0.00017808,2]
[351405194,1738554661400,-1378.39,0.00017808,2]
[351405195,1738554661410,-1589.79,0.00017808,2]
[351405196,1738554661419,-774.95,0.00017808,2]
[351405197,1738554661430,-500.0,0.00017808,2]
[351405198,1738554661440,-635.87,0.00017808,2]
[351405199,1738554661450,-1797.16,0.00017808,2]
[351405200,1738554661461,-724.24,0.00017808,2]
[351405201,1738554661472,-668.66,0.00017808,2]
[351405202,1738554661482,-500.0,0.00017808,2]
[351405203,1738554661492,-1734.91,0.00017808,2]
[351405204,1738554661508,-500.0,0.00017808,2]
[351405205,1738554661518,-1085.82,0.00017808,2]
[351405206,1738554661528,-623.92,0.00017808,2]
[351405207,1738554661538,-511.55318502,0.00017808,2]
[351405208,1738554661547,-712.64,0.00017808,2]
[351405209,1738554661557,-1384.58,0.00017808,2]
[351405210,1738554661567,-564.8,0.00017808,2]
[351405211,1738554661577,-210.59388211,0.00017809,2]
[351405212,1738554661588,-833.184518,0.00017817,2]
[351405213,1738554661598,-22597.17839438,0.00017819,2]
[351405214,1738554661610,-210.59388211,0.000179,2]
[351405215,1738554661620,-2000.0,0.000179,2]
[351405216,1738554661630,-2000.0,0.000179,2]
[351405217,1738554661642,-2000.0,0.000179,2]
[351405218,1738554661654,-151.0,0.000179,2]
[351405219,1738554661663,-151.0,0.00017945,2]
[351405220,1738554661674,-175.793076,0.00017945,2]
[351405221,1738554661684,-175.793076,0.00017945,2]
[351405222,1738554661694,-151.0,0.00017945,2]
[351405223,1738554661705,-151.0,0.00017945,2]
[351405224,1738554661714,-181.315323,0.00017945,2]
[351405225,1738554661724,-181.315323,0.00017945,2]
[351405226,1738554661734,-212.31,0.00017945,2]
[351405227,1738554661744,-500.0,0.00017945,2]
[351405228,1738554661759,-151.0,0.00017945,2]
[351405229,1738554661769,-500.0,0.00017945,2]
[351405230,1738554661778,-151.0,0.00017945,2]
[351405231,1738554661788,-151.0,0.00017945,2]
[351405232,1738554661798,-290.07180557,0.00017945,2]
[351405233,1738554661807,-991.829039,0.00017945,2]
[351405234,1738554661817,-500.0,0.00017945,2]
[351405235,1738554661827,-991.829039,0.00017945,2]
[351405236,1738554661837,-500.0,0.00017945,2]
[351405237,1738554661847,-252.391,0.00017945,2]
[351405238,1738554661856,-500.0,0.00017945,2]
[351405239,1738554661866,-252.391,0.00017945,2]
[351405240,1738554661876,-519.41658672,0.00017945,2]
[351405241,1738554661885,-500.0,0.00017945,2]
[351405242,1738554661894,-500.0,0.00017945,2]
[351405243,1738554661904,-500.0,0.00017945,2]
[351405244,1738554661913,-173.779155,0.00017945,2]
[351405245,1738554661922,-173.779155,0.00017945,2]
[351405246,1738554661932,-500.0,0.00017945,2]
[351405247,1738554661941,-151.0,0.00017945,2]
[351405248,1738554661951,-151.0,0.00017945,2]
[351405249,1738554661962,-151.0,0.00017945,2]
[351405250,1738554661971,-773.23,0.00017945,2]
[351405251,1738554661980,-765.33,0.00017945,2]
[351405252,1738554661990,-668.66,0.00017945,2]
[351405253,1738554662004,-500.0,0.00017945,2]
[351405254,1738554662014,-500.0,0.00017945,2]
[351405255,1738554662023,-500.0,0.00017945,2]
[351405256,1738554662032,-500.0,0.00017945,2]
[351405257,1738554662042,-3183.83,0.00017945,2]
[351405258,1738554662052,-877.881464,0.00017945,2]
[351405259,1738554662062,-877.881464,0.00017945,2]
[351405260,1738554662072,-596.49,0.00017945,2]
[351405261,1738554662082,-7065.8,0.00017945,2]
[351405262,1738554662093,-684.68,0.00017945,2]
[351405263,1738554662103,-758.586966,0.00017945,2]
[351405264,1738554662112,-500.0,0.00017945,2]
[351405265,1738554662122,-151.0,0.00017945,2]
[351405266,1738554662132,-758.586966,0.00017945,2]
[351405267,1738554662142,-750.78,0.00017945,2]
[351405268,1738554662151,-500.0,0.00017945,2]
[351405269,1738554662162,-650.17,0.00017945,2]
[351405270,1738554662172,-1019.39,0.00017945,2]
[351405271,1738554662182,-8146.71,0.00017945,2]
[351405272,1738554662192,-613.84,0.00017945,2]
[351405273,1738554662202,-550.81,0.00017945,2]
[351405274,1738554662212,-909.51,0.00017945,2]
[351405275,1738554662222,-804.6,0.00017945,2]
[351405276,1738554662232,-500.0,0.00017945,2]
[351405277,1738554662243,-2011.93,0.00017945,2]
[351405278,1738554662255,-500.0,0.00017945,2]
[351405279,1738554662267,-3668.25,0.00017945,2]
[351405280,1738554662277,-741.77,0.00017945,2]
[351405281,1738554662288,-1378.39,0.00017945,2]
[351405282,1738554662298,-1589.79,0.00017945,2]
[351405283,1738554662309,-774.95,0.00017945,2]
[351405284,1738554662320,-500.0,0.00017945,2]
[351405285,1738554662330,-635.87,0.00017945,2]
[351405286,1738554662340,-1797.16,0.00017945,2]
[351405287,1738554662351,-724.24,0.00017945,2]
[351405288,1738554662361,-668.66,0.00017945,2]
[351405289,1738554662371,-240.69257821,0.00017945,2]
[351405290,1738554662382,-1734.91,0.00017945,2]
[351405291,1738554662392,-500.0,0.00017945,2]
[351405292,1738554662403,-1085.82,0.00017945,2]
[351405293,1738554662412,-623.92,0.00017945,2]
[351405294,1738554662422,-712.64,0.00017945,2]
[351405295,1738554662431,-1384.58,0.00017945,2]
[351405296,1738554662440,-564.8,0.00017945,2]
[351405297,1738554662450,-420.0,0.00017963,2]
[351405298,1738554662460,-273.86137884,0.00017973,2]
[351405299,1738554662470,-500.0,0.00017973,2]
[351405300,1738554662481,-604.77220171,0.00017973,2]
[351405301,1738554662490,-500.0,0.00017973,2]
[351405302,1738554662504,-500.0,0.00017973,2]
[351405303,1738554662514,-570.51225854,0.00017973,2]
[351405304,1738554662524,-500.0,0.00017973,2]
[351405305,1738554662534,-500.0,0.00017973,2]
[351405306,1738554662544,-500.0,0.00017973,2]
[351405307,1738554662554,-500.0,0.00017973,2]
[351405308,1738554662565,-159.92647054,0.00017996,2]
[351405309,1738554662575,-160.0,0.00017999,3]
[351405310,1738554662587,-160.98583136,0.00017999,5]
[351405311,1738554662598,-161.96169493,0.00017999,2]
[351405312,1738554662610,-190834.70318284,0.00018,5]
[351405313,1738554662620,-57492.44530488,0.00018,5]
[351405314,1738554662630,-10612.30451762,0.00018,15]
[351405325,1738554666957,-27678.958425,0.00018,15]
[351405328,1738554667334,-911.73054286,0.00016438,2]
[351405329,1738554667366,-261.69945714,0.00016438,2]
[351405330,1738554667375,-136.37654286,0.00016438,2]
[351405331,1738554667388,-363.62345714,0.00016438,2]
[351405332,1738554667397,-500.0,0.00016438,2]
[351405333,1738554667407,-1173.43,0.00016575,2]
[351405334,1738554667416,-500.0,0.00016575,2]
[351405335,1738554667425,-103.7460704,0.00016712,2]
[351405336,1738554667436,-334.98124228,0.00016712,2]
[351405339,1738554668891,-734.70268732,0.00016712,2]
[351405340,1738554668900,-1173.43,0.00016849,2]
[351405341,1738554668910,-10996.8881924,0.00016908,2]
[351405342,1738554668920,-1173.43,0.00016986,2]
[351405343,1738554668930,-1173.43,0.00017123,2]
[351405344,1738554668939,-1173.43,0.0001726,2]
[351405345,1738554668948,-531.31028928,0.00017397,2]
[351405346,1738554668960,-604.0,0.00017397,2]
[351405347,1738554668987,-38.11971072,0.00017397,2]
[351405348,1738554668996,-1173.43,0.00017534,2]
[351405349,1738554669011,-523.69,0.00017671,2]
[351405350,1738554669021,-1173.43,0.00017671,2]
[351405351,1738554669031,-523.69,0.00017808,2]
[351405352,1738554669042,-1173.43,0.00017808,2]
[351405353,1738554669051,-523.69,0.00017945,2]
[351405354,1738554669061,-1173.43,0.00017945,2]
[351405355,1738554669070,-47450.92825784,0.00018,15]
[351405357,1738554669082,-2990.65837614,0.00018,15]
[351405358,1738554669094,-1133.85484393,0.00018,15]
[351405359,1738554669105,-2020.65807544,0.00018,15]
[351405360,1738554669120,-3623.42382377,0.00018,15]
[351405361,1738554669132,-4436.71785262,0.00018,15]
[351405364,1738554670902,-13733.688214,0.00018,15]
[351405365,1738554670914,-660.14473677,0.00018,15]
[351405368,1738554671494,-500.0,0.00016438,2]
[351405369,1738554671508,-515.22791306,0.00016438,2]
[351405371,1738554671518,-512.0999841,0.00016438,2]
[351405372,1738554671528,-500.0,0.00016575,2]
[351405373,1738554671537,-154.66,0.00016712,2]
[351405374,1738554671546,-708006.65125337,0.00018,15]
[351405375,1738554671566,-28066.80028848,0.00018,15]
[351405376,1738554671578,-2603.81319312,0.00018,15]
[351405377,1738554671591,-37762.02799225,0.00018,15]
[351405378,1738554671710,-2327.140547,0.00018,15]
[351405387,1738554677298,-42515.610446,0.00018,15]
[351405801,1738554864765,206.727026,0.00013973,2]
[351405874,1738554907339,859.02,0.00010959,2]
[351405933,1738554938490,153.7,0.00010959,2]
[351405965,1738554959276,768.52,0.00010959,2]
[351406489,1738555286561,839.84704964,0.00015011,2]
[351406718,1738555609283,8158.82361746,0.00015011,2]
[351406719,1738555609317,1841.17638254,0.00015011,2]
[351406720,1738555616255,10000.0,0.00015011,2]
[351406723,1738555634664,3226.3,0.00015011,2]
[351406724,1738555696206,205.543332,0.00013973,2]
[351406725,1738555742426,4726.98028546,0.00015011,2]
[351406726,1738555742462,273.01971454,0.00015011,2]
[351406727,1738555758204,5000.0,0.00015011,2]
[351406728,1738555775114,5000.0,0.00015011,2]
[351406729,1738555790997,5000.0,0.00015011,2]
[351406736,1738555808060,1401.85446972,0.00015011,2]
[351406755,1738555832349,-300.0,0.00015205,2]
[351406756,1738555832358,-2009.9,0.00015206,2]
[351406757,1738555832462,-536.415,0.00015206,2]
[351406758,1738555832475,-279.83021472,0.00015206,2]
[351406791,1738555838328,-759.40229666,0.00015206,2]
[351406793,1738555838339,-1191.34071399,0.00015206,2]
[351406796,1738555838382,-522.63734845,0.00015206,2]
[351406802,1738555838549,-16368.42159808,0.00015206,2]
[351406803,1738555838563,-1450.6836398,0.00015227,2]
[351406804,1738555838576,-500.0,0.00015273,2]
[351406805,1738555838586,-500.0,0.00015273,2]
[351406806,1738555838596,-386.13082336,0.00015273,2]
[351406807,1738555838606,-500.0,0.00015753,2]
[351406808,1738555838615,-358.38908352,0.00016338,2]
[351406809,1738555838625,-3000.0,0.000164,2]
[351406810,1738555838635,-3000.0,0.0001641,2]
[351406811,1738555838644,-3000.0,0.0001642,2]
[351406812,1738555838653,-151.0,0.00016428,2]
[351406813,1738555838663,-3000.0,0.0001643,2]
[351406814,1738555838673,-283.40308494,0.00016437,2]
[351406815,1738555838682,-500.0,0.00016437,2]
[351406816,1738555838691,-599.86244445,0.00016437,2]
[351406817,1738555838701,-500.0,0.00016437,2]
[351406818,1738555838712,-500.0,0.00016437,2]
[351406819,1738555838722,-500.0,0.00016437,2]
[351406820,1738555838731,-500.0,0.00016437,2]
[351406821,1738555838740,-500.0,0.00016437,2]
[351406822,1738555838750,-500.0,0.00016437,2]
[351406823,1738555838759,-488.52500316,0.00016437,2]
[351406824,1738555838768,-500.0,0.00016437,2]
[351406825,1738555838778,-500.0,0.00016437,2]
[351406826,1738555838795,-500.0,0.00016437,2]
[351406827,1738555838806,-500.0,0.00016437,2]
[351406828,1738555838816,-500.0,0.00016437,2]
[351406829,1738555838826,-495.66469543,0.00016437,2]
[351406830,1738555838836,-500.0,0.00016437,2]
[351406831,1738555838847,-500.0,0.00016437,2]
[351406832,1738555838857,-500.0,0.00016437,2]
[351406833,1738555838865,-500.0,0.00016437,2]
[351406834,1738555838875,-500.0,0.00016437,2]
[351406835,1738555838885,-255.64987993,0.00016437,2]
[351406836,1738555838895,-500.0,0.00016437,2]
[351406837,1738555838905,-241.01005382,0.00016437,2]
[351406838,1738555838915,-500.0,0.00016437,2]
[351406839,1738555838924,-577.22016576,0.00016437,2]
[351406840,1738555838934,-500.0,0.00016437,2]
[351406841,1738555838943,-500.0,0.00016437,2]
[351406842,1738555838960,-500.0,0.00016437,2]
[351406843,1738555838970,-500.0,0.00016437,2]
[351406844,1738555838979,-500.0,0.00016437,2]
[351406845,1738555838990,-500.0,0.00016437,2]
[351406846,1738555838999,-500.0,0.00016437,2]
[351406847,1738555839009,-406.57537613,0.00016437,2]
[351406848,1738555839018,-500.0,0.00016437,2]
[351406849,1738555839029,-500.0,0.00016437,2]
[351406850,1738555839038,-500.0,0.00016437,2]
[351406851,1738555839047,-500.0,0.00016437,2]
[351406852,1738555839057,-500.0,0.00016437,2]
[351406853,1738555839066,-500.0,0.00016437,2]
[351406854,1738555839075,-500.0,0.00016437,2]
[351406855,1738555839085,-500.0,0.00016437,2]
[351406856,1738555839095,-500.0,0.00016437,2]
[351406857,1738555839104,-500.0,0.00016437,2]
[351406858,1738555839113,-500.0,0.00016437,2]
[351406859,1738555839124,-500.0,0.00016437,2]
[351406860,1738555839135,-500.0,0.00016437,2]
[351406861,1738555839145,-500.0,0.00016437,2]
[351406862,1738555839155,-500.0,0.00016437,2]
[351406863,1738555839165,-500.0,0.00016437,2]
[351406864,1738555839175,-200.0,0.00016437,2]
[351406865,1738555839184,-500.0,0.00016437,2]
[351406866,1738555839194,-503.07686475,0.00016437,2]
[351406867,1738555839203,-500.0,0.00016437,2]
[351406868,1738555839215,-346.37353376,0.00016437,2]
[351406869,1738555839225,-500.0,0.00016437,2]
[351406870,1738555839235,-500.0,0.00016437,2]
[351406871,1738555839245,-509.6306137,0.00016437,2]
[351406872,1738555839253,-500.0,0.00016437,2]
[351406873,1738555839262,-171.93475503,0.00016438,2]
[351406874,1738555839272,-645.01125921,0.00016438,2]
[351406875,1738555839281,-498.56552038,0.00016438,2]
[351406876,1738555839291,-497.10932167,0.00016438,2]
[351406877,1738555839300,-500.0,0.00016438,2]
[351406878,1738555839308,-502.16596267,0.00016438,2]
[351406879,1738555839318,-500.0,0.00016438,2]
[351406880,1738555839328,-508.15757314,0.00016438,2]
[351406881,1738555839338,-629.05829955,0.00016438,2]
[351406882,1738555839348,-501.06993533,0.00016438,2]
[351406883,1738555839358,-573.98454302,0.00016438,2]
[351406884,1738555839369,-598.05059761,0.00016438,2]
[351406885,1738555839379,-501.36687692,0.00016438,2]
[351406886,1738555839390,-500.72666779,0.00016438,2]
[351406887,1738555839401,-500.69162913,0.00016438,2]
[351406888,1738555839411,-500.0,0.00016438,2]
[351406889,1738555839421,-500.0,0.00016438,2]
[351406890,1738555839430,-500.0,0.00016438,2]
[351406891,1738555839441,-500.0,0.00016438,2]
[351406892,1738555839453,-501.11550446,0.00016438,2]
[351406893,1738555839464,-500.0,0.00016438,2]
[351406894,1738555839474,-500.0,0.00016438,2]
[351406895,1738555839484,-500.0,0.00016438,2]
[351406896,1738555839494,-500.0,0.00016438,2]
[351406897,1738555839503,-500.0,0.00016438,2]
[351406898,1738555839513,-501.04120755,0.00016438,2]
[351406899,1738555839523,-500.0,0.00016438,2]